lending/lending_fUSD_20240124
["ID","MTS","AMOUNT","RATE_DAILY","PERIOD"]
[312651405,1706134232584,-153.9,0.00022733,2]
[312651406,1706134232593,-388.55723841,0.00022769,2]
[312651407,1706134232603,-166.99,0.00022782,2]
[312651409,1706134232612,-250.0,0.00022791,2]
[312651411,1706134232622,-341.83071978,0.00022798,2]
[312651412,1706134232631,-204.37295078,0.00022798,2]
[312651413,1706134232640,-1882.84566063,0.00022799,2]
[312651414,1706134232650,-235.25134461,0.00022799,2]
[312651415,1706134232659,-1857.92137233,0.00022799,2]
[312651416,1706134232668,-46485.34622906,0.000228,2]
[312651417,1706134232680,-400.09,0.000228,2]
[312651418,1706134232716,-717.24099228,0.000228,2]
[312651419,1706134232728,-3541.94354438,0.000228,2]
[312651420,1706134232739,-3678.55124243,0.000228,2]
[312651421,1706134232751,-1652.31000009,0.000228,2]
[312651434,1706134238273,-251.70096473,0.000228,2]
[312651435,1706134238330,-840.12646889,0.000228,2]
[312651436,1706134238384,-252.000007,0.000228,2]
[312651437,1706134238398,-639.0403552,0.000228,2]
[312651438,1706134238411,-3362.12,0.000228,2]
[312651439,1706134238423,-3170.93065347,0.000228,2]
[312651440,1706134238441,-2640.88972985,0.000228,2]
[312651441,1706134238456,-786.5464571,0.000228,2]
[312651442,1706134238467,-349.19474161,0.000228,2]
[312651443,1706134238541,-28788.43701391,0.000228,2]
[312651444,1706134238551,-153.9,0.0002281,2]
[312651445,1706134238561,-153.9,0.00022888,2]
[312651446,1706134238572,-1336.32807748,0.000229,2]
[312651447,1706134238582,-1000.0,0.000229,2]
[312651448,1706134238591,-156.79902863,0.000229,2]
[312651449,1706134238600,-2500.0,0.000229,2]
[312651450,1706134238609,-1360.72630126,0.000229,2]
[312651452,1706134238619,-303.67270222,0.000229,2]
[312651454,1706134238628,-1200.36858276,0.000229,6]
[312651456,1706134238637,-153.9,0.00022966,2]
[312651458,1706134238646,-361.98226453,0.0002299,2]
[312651460,1706134238655,-361.98226453,0.0002299,2]
[312651462,1706134238664,-361.98226453,0.0002299,2]
[312651464,1706134238673,-711.4383273,0.00022999,2]
[312651465,1706134238682,-190.30238729,0.00022999,2]
[312651467,1706134238691,-423.85782882,0.00022999,2]
[312651468,1706134238704,-2448.51421875,0.00022999,2]
[312651469,1706134238715,-627.17054075,0.00022999,2]
[312651470,1706134238726,-1061.1227723,0.00022999,2]
[312651471,1706134238738,-2611.42564805,0.00022999,2]
[312651472,1706134238747,-232.28181461,0.00022999,2]
[312651473,1706134238757,-939.48072798,0.00022999,2]
[312651474,1706134238767,-838.53372,0.00022999,2]
[312651475,1706134238776,-1166.50407624,0.00022999,2]
[312651476,1706134238786,-409.59833463,0.00022999,2]
[312651478,1706134238795,-1992.57726224,0.00023,2]
[312651481,1706134238814,-2112.3169549,0.00023,2]
[312651490,1706134238888,-2832232.59455527,0.00023,2]
[312651492,1706134238897,-941.41702083,0.00023,2]
[312651494,1706134238907,-222715.23021384,0.00023,2]
[312651496,1706134238918,-358459.30866976,0.00023,2]
[312651498,1706134238929,-2317.36210758,0.00023,2]
[312651501,1706134238940,-103418.62392164,0.00023,2]
[312651609,1706134241303,-3186375.67038001,0.00023,2]
[312651610,1706134241314,-153.9,0.00023043,2]
[312651611,1706134241325,-1000.0,0.00023045,2]
[312651612,1706134241334,-153.9,0.00023121,2]
[312651613,1706134241343,-153.9,0.00023198,2]
[312651614,1706134241352,-153.9,0.00023276,2]
[312651615,1706134241361,-153.9,0.00023354,2]
[312651616,1706134241370,-178.28,0.000234,2]
[312651617,1706134241379,-153.9,0.00023431,2]
[312651618,1706134241388,-153.9,0.00023509,2]
[312651619,1706134241397,-757.86,0.00023537,2]
[312651620,1706134241406,-171.76,0.00024286,2]
[312651621,1706134241415,-757.86,0.00024377,2]
[312651622,1706134241424,-250.0,0.00024658,2]
[312651623,1706134241433,-450.0,0.00025,3]
[312651624,1706134241442,-158.87277204,0.00025,2]
[312651625,1706134241451,-178.28,0.00025044,2]
[312651626,1706134241460,-757.86,0.00025217,2]
[312651627,1706134241470,-1336.3280774,0.00025417,2]
[312651628,1706134241479,-1000.0,0.00025926,2]
[312651629,1706134241488,-500.0,0.00026,2]
[312651630,1706134241498,-757.86,0.00026057,2]
[312651631,1706134241507,-234.97692763,0.000265,2]
[312651632,1706134241517,-234.97692763,0.000265,2]
[312651633,1706134241527,-234.97692763,0.000265,2]
[312651634,1706134241537,-234.97692763,0.000265,2]
[312651635,1706134241547,-234.97692763,0.000265,2]
[312651636,1706134241558,-234.97692763,0.000265,2]
[312651637,1706134241568,-234.97692763,0.000265,2]
[312651638,1706134241580,-234.97692763,0.000265,2]
[312651639,1706134241590,-234.97692763,0.000265,2]
[312651640,1706134241601,-234.97692763,0.000265,2]
[312651641,1706134241610,-234.97692763,0.000265,2]
[312651642,1706134241620,-234.97692763,0.000265,2]
[312651643,1706134241629,-234.97692763,0.000265,2]
[312651644,1706134241638,-234.97692763,0.000265,2]
[312651646,1706134241647,-234.97692763,0.000265,2]
[312651647,1706134241656,-234.97692763,0.000265,2]
[312651648,1706134241665,-234.97692763,0.000265,2]
[312651649,1706134241674,-234.97692763,0.000265,2]
[312651650,1706134241683,-234.97692763,0.000265,2]
[312651651,1706134241694,-234.97692763,0.000265,2]
[312651652,1706134241703,-234.97692763,0.000265,2]
[312651653,1706134241713,-234.97692763,0.000265,2]
[312651654,1706134241722,-234.97692763,0.000265,2]
[312651655,1706134241731,-234.97692763,0.000265,2]
[312651656,1706134241740,-234.97692763,0.000265,2]
[312651657,1706134241749,-234.97692763,0.000265,2]
[312651658,1706134241759,-234.97692763,0.000265,2]
[312651659,1706134241768,-234.97692763,0.000265,2]
[312651660,1706134241777,-234.97692763,0.000265,2]
[312651661,1706134241787,-234.97692763,0.000265,2]
[312651662,1706134241796,-234.97692763,0.000265,2]
[312651663,1706134241805,-234.97692763,0.000265,2]
[312651664,1706134241814,-234.97692763,0.000265,2]
[312651665,1706134241823,-234.97692763,0.000265,2]
[312651666,1706134241832,-234.97692763,0.000265,2]
[312651667,1706134241841,-234.97692763,0.000265,2]
[312651668,1706134241850,-234.97692763,0.000265,2]
[312651669,1706134241859,-234.97692763,0.000265,2]
[312651670,1706134241868,-234.97692763,0.000265,2]
[312651671,1706134241877,-234.97692763,0.000265,2]
[312651672,1706134241886,-234.97692763,0.000265,2]
[312651673,1706134241895,-234.97692763,0.000265,2]
[312651674,1706134241905,-234.97692763,0.000265,2]
[312651675,1706134241914,-234.97692763,0.000265,2]
[312651676,1706134241924,-234.97692763,0.000265,2]
[312651677,1706134241933,-234.97692763,0.000265,2]
[312651678,1706134241942,-234.97692763,0.000265,2]
[312651679,1706134241951,-234.97692763,0.000265,2]
[312651680,1706134241961,-234.97692763,0.000265,2]
[312651681,1706134241971,-234.97692763,0.000265,2]
[312651682,1706134241980,-234.97692763,0.000265,2]
[312651683,1706134241989,-234.97692763,0.000265,2]
[312651684,1706134241998,-234.97692763,0.000265,2]
[312651685,1706134242008,-234.97692763,0.000265,2]
[312651686,1706134242017,-234.97692763,0.000265,2]
[312651687,1706134242026,-234.97692763,0.000265,2]
[312651688,1706134242035,-234.97692763,0.000265,2]
[312651689,1706134242045,-234.97692763,0.000265,2]
[312651690,1706134242055,-234.97692763,0.000265,2]
[312651691,1706134242064,-234.97692763,0.000265,2]
[312651692,1706134242074,-234.97692763,0.000265,2]
[312651693,1706134242084,-234.97692763,0.000265,2]
[312651694,1706134242094,-234.97692763,0.000265,2]
[312651695,1706134242102,-234.97692763,0.000265,2]
[312651696,1706134242112,-234.97692763,0.000265,2]
[312651697,1706134242124,-234.97692763,0.000265,2]
[312651698,1706134242133,-234.97692763,0.000265,2]
[312651699,1706134242142,-234.97692763,0.000265,2]
[312651700,1706134242151,-234.97692763,0.000265,2]
[312651701,1706134242162,-234.97692763,0.000265,2]
[312651702,1706134242171,-234.97692763,0.000265,2]
[312651703,1706134242181,-234.97692763,0.000265,2]
[312651704,1706134242191,-234.97692763,0.000265,2]
[312651705,1706134242200,-234.97692763,0.000265,2]
[312651706,1706134242209,-234.97692763,0.000265,2]
[312651707,1706134242218,-234.97692763,0.000265,2]
[312651708,1706134242227,-234.97692763,0.000265,2]
[312651709,1706134242236,-234.97692763,0.000265,2]
[312651710,1706134242246,-234.97692763,0.000265,2]
[312651711,1706134242255,-234.97692763,0.000265,2]
[312651712,1706134242264,-234.97692763,0.000265,2]
[312651713,1706134242273,-234.97692763,0.000265,2]
[312651714,1706134242284,-234.97692763,0.000265,2]
[312651715,1706134242293,-234.97692763,0.000265,2]
[312651716,1706134242303,-234.97692763,0.000265,2]
[312651717,1706134242312,-234.97692763,0.000265,2]
[312651718,1706134242321,-234.97692763,0.000265,2]
[312651719,1706134242331,-234.97692763,0.000265,2]
[312651720,1706134242340,-234.97692763,0.000265,2]
[312651721,1706134242349,-234.97692763,0.000265,2]
[312651722,1706134242359,-234.97692763,0.000265,2]
[312651723,1706134242368,-234.97692763,0.000265,2]
[312651724,1706134242377,-234.97692763,0.000265,2]
[312651725,1706134242386,-234.97692763,0.000265,2]
[312651726,1706134242395,-234.97692763,0.000265,2]
[312651727,1706134242404,-234.97692763,0.000265,2]
[312651728,1706134242413,-234.97692763,0.000265,2]
[312651729,1706134242422,-234.97692763,0.000265,2]
[312651730,1706134242431,-234.97692763,0.000265,2]
[312651731,1706134242440,-234.97692763,0.000265,2]
[312651732,1706134242450,-171.76,0.0002655,2]
[312651733,1706134242459,-1026.81,0.00026575,2]
[312651734,1706134242469,-2302.24,0.00026575,2]
[312651735,1706134242478,-178.28,0.00026688,2]
[312651736,1706134242489,-500.0,0.00027,3]
[312651737,1706134242498,-1200.36858276,0.00027256,13]
[312651738,1706134242508,-1360.72630125,0.00027336,2]
[312651739,1706134242527,-303.67270221,0.00027336,2]
[312651740,1706134242538,-155.0,0.00027397,2]
[312651741,1706134242547,-290.38,0.00027397,2]
[312651742,1706134242557,-160.69,0.000274,2]
[312651743,1706134242567,-160.69,0.000274,2]
[312651744,1706134242579,-160.69,0.000274,2]
[312651745,1706134242588,-160.69,0.000274,2]
[312651746,1706134242598,-160.69,0.000274,2]
[312651747,1706134242607,-160.69,0.000274,2]
[312651748,1706134242618,-185.88463409,0.000275,2]
[312651749,1706134242627,-290.38,0.00027686,2]
[312651750,1706134242637,-1336.3280774,0.00027933,2]
[312651751,1706134242646,-290.38,0.00027974,2]
[312651752,1706134242655,-290.38,0.00028262,2]
[312651753,1706134242665,-178.28,0.00028331,2]
[312651754,1706134242674,-166.99,0.00028477,2]
[312651755,1706134242686,-290.38,0.00028551,2]
[312651756,1706134242696,-1000.0,0.00028806,2]
[312651757,1706134242705,-171.76,0.00028814,2]
[312651758,1706134242715,-290.38,0.00028839,2]
[312651759,1706134242724,-550.0,0.00029,3]
[312651760,1706134242734,-6242.13186231,0.00029,15]
[312651761,1706134242743,-290.38,0.00029128,2]
[312651762,1706134242752,-150.0,0.000292,2]
[312651763,1706134242761,-290.38,0.00029416,2]
[312651764,1706134242771,-290.38,0.00029704,2]
[312651765,1706134242780,-178.28,0.00029975,2]
[312651766,1706134242789,-290.38,0.00029993,2]
[312651767,1706134242798,-309299.69368923,0.0003,4]
[312651768,1706134242808,-893.09479131,0.0003,4]
[312651769,1706134242817,-1807.84533026,0.0003,4]
[312651770,1706134242830,-582.7666979,0.0003,2]
[312651771,1706134242839,-692.06285158,0.0003,2]
[312651772,1706134242849,-274.64224589,0.0003,2]
[312651773,1706134242859,-155.0,0.0003,2]
[312651774,1706134242869,-8843.95043296,0.0003,4]
[312651775,1706134242878,-110684.93362919,0.0003,4]
[312651776,1706134242888,-752.77769588,0.0003,2]
[312651777,1706134242897,-390.6890791,0.0003,4]
[312651778,1706134242907,-9641.46795832,0.0003,2]
[312651779,1706134242916,-463.77018372,0.0003,4]
[312651780,1706134242926,-814.57679404,0.0003,4]
[312651781,1706134242935,-23539.12163938,0.0003,3]
[312651782,1706134242944,-143752.93186969,0.0003,2]
[312651805,1706134243254,-312.00457336,0.0003,2]
[312651807,1706134243264,-5347.12741539,0.00030097,2]
[312651819,1706134243317,-2189.04179809,0.00030097,2]
[312651821,1706134243327,-65570.06955818,0.000301,2]
[312651824,1706134243339,-270.62471335,0.000301,2]
[312651828,1706134243362,-406.475745,0.000301,2]
[312651830,1706134243374,-657.0,0.000301,2]
[312651832,1706134243385,-2391.69384,0.000301,2]
[312651841,1706134243924,-433.72783817,0.000301,2]
[312651842,1706134243936,-250.0,0.000301,2]
[312651843,1706134243968,-568.37329392,0.000301,2]
[312651844,1706134243980,-393.67099079,0.000301,2]
[312651845,1706134244454,-23354.72447846,0.000301,2]
[312651846,1706134244466,-59846.85795553,0.000301,2]
[312651847,1706134244476,-5845.39630101,0.000302,4]
[312651848,1706134244486,-240.0,0.000302,2]
[312651849,1706134244495,-684.54915076,0.000302,4]
[312651850,1706134244504,-159.37438325,0.00030281,14]
[312651851,1706134244514,-290.38,0.00030281,2]
[312651852,1706134244523,-357.87420369,0.0003032,2]
[312651853,1706134244533,-656.17,0.00030389,2]
[312651854,1706134244552,-1586.94099563,0.00030424,28]
[312651855,1706134244563,-1336.3280774,0.0003045,2]
[312651856,1706134244573,-290.38,0.00030569,2]
[312651857,1706134244583,-290.38,0.00030858,2]
[312651858,1706134244593,-600.0,0.00031,3]
[312651859,1706134244602,-171.76,0.00031078,2]
[312651860,1706134244612,-290.38,0.00031146,2]
[312651861,1706134244621,-290.38,0.00031435,2]
[312651862,1706134244631,-1200.36858276,0.00031612,19]
[312651863,1706134244640,-180.0,0.00031644,2]
[312651864,1706134244650,-1000.0,0.00031687,2]
[312651865,1706134244659,-290.38,0.00031723,2]
[312651866,1706134244669,-1360.72630125,0.00031771,2]
[312651867,1706134244679,-303.67270221,0.00031771,2]
[312651868,1706134244688,-38432.68340501,0.000318,3]
[312651869,1706134244701,-5940.03383311,0.000318,3]
[312651870,1706134244721,-277.95641251,0.000318,3]
[312651871,1706134244736,-95217.09993753,0.000318,3]
[312651872,1706134244748,-2926.36919963,0.000318,3]
[312651873,1706134244783,-209774.71872321,0.000318,3]
[312651874,1706134244793,-13066.62474655,0.00032,4]
[312651875,1706134244804,-290.38,0.00032011,2]
[312651876,1706134244814,-290.38,0.000323,2]
[312651877,1706134244824,-1934.0,0.00032392,2]
[312651878,1706134244834,-290.38,0.00032588,2]
[312651879,1706134244844,-1013.63358266,0.000327,2]
[312651880,1706134244854,-1013.63358257,0.000327,2]
[312651881,1706134244865,-1013.63358257,0.000327,2]
[312651882,1706134244875,-1013.63358257,0.000327,2]
[312651883,1706134244885,-1013.63358257,0.000327,2]
[312651884,1706134244894,-1013.63358257,0.000327,2]
[312651885,1706134244904,-1013.63358257,0.000327,2]
[312651886,1706134244914,-1013.63358257,0.000327,2]
[312651887,1706134244924,-1013.63358257,0.000327,2]
[312651888,1706134244933,-1013.63358257,0.000327,2]
[312651889,1706134244943,-1013.63358257,0.000327,2]
[312651890,1706134244952,-1013.63358257,0.000327,2]
[312651891,1706134244961,-1013.63358257,0.000327,2]
[312651892,1706134244971,-1013.63358257,0.000327,2]
[312651893,1706134244980,-1013.63358257,0.000327,2]
[312651894,1706134244990,-1013.63358257,0.000327,2]
[312651895,1706134244999,-1013.63358257,0.000327,2]
[312651896,1706134245009,-1013.63358257,0.000327,2]
[312651897,1706134245019,-1013.63358257,0.000327,2]
[312651898,1706134245029,-1013.63358257,0.000327,2]
[312651899,1706134245038,-152.71,0.000328,2]
[312651900,1706134245047,-290.38,0.00032877,2]
[312651901,1706134245056,-159.18,0.00032877,15]
[312651902,1706134245065,-500.0,0.000329,2]
[312651903,1706134245076,-1336.3280774,0.00032967,4]
[312651904,1706134245085,-650.0,0.00033,3]
[312651905,1706134245094,-171.76,0.00033342,2]
[312651906,1706134245104,-494.68,0.000335,2]
[312651907,1706134245114,-494.68,0.000335,2]
[312651908,1706134245126,-494.68,0.000335,2]
[312651909,1706134245135,-494.68,0.000335,2]
[312651910,1706134245145,-494.68,0.000335,2]
[312651911,1706134245155,-494.68,0.000335,2]
[312651912,1706134245164,-494.68,0.000335,2]
[312651913,1706134245174,-494.68,0.000335,2]
[312651914,1706134245184,-494.68,0.000335,2]
[312651915,1706134245194,-494.68,0.000335,2]
[312651916,1706134245204,-494.68,0.000335,2]
[312651917,1706134245214,-494.68,0.000335,2]
[312651918,1706134245224,-494.68,0.000335,2]
[312651919,1706134245233,-494.68,0.000335,2]
[312651920,1706134245243,-494.68,0.000335,2]
[312651921,1706134245253,-494.68,0.000335,2]
[312651922,1706134245263,-494.68,0.000335,2]
[312651923,1706134245272,-494.68,0.000335,2]
[312651924,1706134245282,-494.68,0.000335,2]
[312651925,1706134245291,-494.68,0.000335,2]
[312651926,1706134245301,-1000.0,0.00034,4]
[312651927,1706134245311,-166.99,0.00034173,2]
[312651928,1706134245320,-1000.0,0.00034568,2]
[312651929,1706134245330,-8970.50905993,0.000349,4]
[312651930,1706134245339,-152.56299767,0.000349,2]
[312651931,1706134245348,-516.7182504,0.000349,2]
[312651932,1706134245358,-516.7182504,0.000349,2]
[312651933,1706134245368,-516.7182504,0.000349,2]
[312651934,1706134245377,-516.7182504,0.000349,2]
[312651935,1706134245387,-700.0,0.00035,3]
[312651936,1706134245397,-448.71557993,0.00035,4]
[312651937,1706134245406,-1261.86346022,0.00035,4]
[312651938,1706134245415,-165.30105231,0.00035,2]
[312651939,1706134245425,-383.45706623,0.00035,2]
[312651940,1706134245434,-8492.00097295,0.00035,2]
[312651941,1706134245447,-25048.38635718,0.00035,2]
[312651942,1706134245457,-33540.38733013,0.00035,2]
[312651943,1706134245466,-1336.3280774,0.00035484,8]
[312651944,1706134245475,-171.76,0.00035606,2]
[312651945,1706134245485,-1000.0,0.000358,2]
[312651946,1706134245494,-1200.36858276,0.00035968,26]
[312651947,1706134245504,-297.7852918,0.00036,4]
[312651948,1706134245514,-151.62401115,0.00036005,2]
[312651949,1706134245523,-1116.45690923,0.00036382,2]
[312651950,1706134245534,-418.21818727,0.00036382,4]
[312651951,1706134245543,-204.0,0.00036444,2]
[312651952,1706134245552,-204.0,0.00036444,2]
[312651953,1706134245561,-447.0,0.00036821,5]
[312651954,1706134245571,-750.0,0.00037,3]
[312651955,1706134245582,-1148.24571993,0.00037142,3]
[312651956,1706134245592,-1102.05232136,0.00037142,3]
[312651957,1706134245601,-1029.02385234,0.00037142,3]
[312651958,1706134245611,-210.0,0.00037229,2]
[312651959,1706134245620,-152.71,0.000373,3]
[312651960,1706134245629,-152.71,0.000373,3]
[312651961,1706134245639,-155.0,0.00037518,4]
[312651962,1706134245649,-4833.65107293,0.00037519,4]
[312651963,1706134245659,-2258.56,0.000377,3]
[312651964,1706134245668,-155.92143527,0.00037709,4]
[312651965,1706134245677,-14455.68821814,0.00037711,4]
[312651966,1706134245686,-500.0,0.00037711,2]
[312651967,1706134245696,-500.0,0.00037711,2]
[312651968,1706134245705,-500.0,0.00037711,2]
[312651969,1706134245715,-500.0,0.00037711,2]
[312651970,1706134245725,-500.0,0.00037711,2]
[312651971,1706134245734,-500.0,0.00037711,2]
[312651972,1706134245744,-500.0,0.00037711,2]
[312651973,1706134245754,-494.68,0.000378,3]
[312651974,1706134245763,-494.68,0.000378,3]
[312651975,1706134245772,-494.68,0.000378,3]
[312651976,1706134245781,-494.68,0.000378,3]
[312651977,1706134245791,-494.68,0.000378,3]
[312651978,1706134245801,-494.68,0.000378,3]
[312651979,1706134245810,-494.68,0.000378,3]
[312651980,1706134245819,-494.68,0.000378,3]
[312651981,1706134245830,-494.68,0.000378,3]
[312651982,1706134245840,-494.68,0.000378,3]
[312651983,1706134245849,-494.68,0.000378,3]
[312651984,1706134245858,-494.68,0.000378,3]
[312651985,1706134245867,-494.68,0.000378,3]
[312651986,1706134245877,-494.68,0.000378,3]
[312651987,1706134245887,-494.68,0.000378,3]
[312651988,1706134245896,-494.68,0.000378,3]
[312651989,1706134245907,-494.68,0.000378,3]
[312651990,1706134245917,-494.68,0.000378,3]
[312651991,1706134245926,-494.68,0.000378,3]
[312651992,1706134245935,-494.68,0.000378,3]
[312651993,1706134245944,-1026.81,0.00037808,2]
[312651994,1706134245953,-2302.24,0.00037808,2]
[312651995,1706134245963,-213.14816404,0.00037859,2]
[312651996,1706134245972,-171.76,0.0003787,2]
[312651997,1706134245981,-1833.1,0.00037889,5]
[312651998,1706134245990,-7536.16921348,0.00037895,2]
[312651999,1706134246000,-155.0,0.00037897,4]
[312652000,1706134246009,-7536.16921348,0.00037897,2]
[312652001,1706134246020,-7135.07140254,0.00037898,5]
[312652002,1706134246030,-928.77185501,0.00037898,4]
[312652003,1706134246040,-51705.04100146,0.00037898,2]
[312652004,1706134246052,-1111.63801988,0.00037898,2]
[312652005,1706134246085,-18246.5844675,0.00037898,2]
[312652006,1706134246097,-435.21808693,0.00037898,2]
[312652007,1706134246109,-609.62827054,0.00037898,2]
[312652071,1706134247333,-310.42145107,0.00026499,2]
[312652073,1706134247342,-191.04557841,0.00026499,2]
[312652075,1706134247352,-768.02273245,0.00037898,2]
[312652250,1706134398525,189.1199,0.00021645,2]
[312652251,1706134677640,2325.81340904,0.00021645,2]
[312652252,1706134695449,2325.81340904,0.00021645,2]
[312652253,1706134715441,2325.81340904,0.00021645,2]
[312652254,1706134731442,1062.98674196,0.00021645,2]
[312652293,1706135431442,-473.80661658,0.00022646,2]
[312652295,1706135431455,-458.32811282,0.00022647,2]
[312652297,1706135431464,-2531.05615437,0.00022647,2]
[312652300,1706135431475,-161.96665803,0.00022647,2]
[312652301,1706135431484,-868.11759118,0.00022648,2]
[312652303,1706135431495,-177.51303073,0.00022662,2]
[312652306,1706135431505,-9734.7174,0.000228,2]
[312652308,1706135431514,-2604.99968715,0.00022998,2]
[312652310,1706135431523,-243.62,0.00024198,2]
[312652312,1706135431532,-450.0,0.00025,3]
[312652314,1706135431542,-797.31,0.00025122,2]
[312652315,1706135431551,-51316.6091745,0.0002514,2]
[312652322,1706135431604,-15432.61362139,0.0002514,2]
[312652328,1706135431711,-706.0193822,0.0002514,2]
[312652329,1706135431723,-399.0,0.0002514,2]
[312652330,1706135431769,-2965.19430304,0.0002514,2]
[312652341,1706135437485,-1541.09121438,0.0002514,2]
[312652342,1706135437498,-2028.35207815,0.0002514,2]
[312652343,1706135437509,-1251.38715086,0.0002514,2]
[312652344,1706135437543,-358459.30866976,0.0002514,2]
[312652345,1706135437603,-1609.72781672,0.0002514,2]
[312652346,1706135437616,-606.32654388,0.0002514,2]
[312652347,1706135437658,-8616.87416391,0.0002514,2]
[312652348,1706135437670,-599.3216317,0.0002514,2]
[312652349,1706135437683,-798.18,0.0002514,2]
[312652376,1706135440198,-8199.38884502,0.0002514,2]
[312652377,1706135440213,-4260.35653115,0.0002514,2]
[312652378,1706135440651,-256.36546543,0.0002514,2]
[312652379,1706135440708,-424.8966112,0.0002514,2]
[312652380,1706135440719,-798.54,0.0002514,2]
[312652381,1706135440767,-2126.22263882,0.0002514,2]
[312652411,1706135442636,-319.32499968,0.0002514,2]
[312652418,1706135442692,-3346.52123248,0.0002514,2]
[312652425,1706135442749,-40230.25233658,0.0002514,2]
[312652427,1706135442759,-2849.42173259,0.00025142,2]
[312652444,1706135445117,6091.67187435,0.00021645,2]
[312652455,1706135445665,-2656.45,0.00025142,2]
[312652456,1706135445858,-1198.73268,0.00025142,2]
[312652459,1706135469101,6091.67187435,0.00021645,2]
[312652460,1706135487118,6080.86098399,0.00021645,2]
[312652461,1706135513991,2324.81312884,0.00021645,2]
[312652462,1706135525294,283.11411474,0.00021645,2]
[312652463,1706135537663,379.87497216,0.00021645,2]
[312652499,1706136631633,-1179.63525431,0.00022086,2]
[312652503,1706136631643,-1318.68025642,0.00022086,2]
[312652506,1706136631652,-682.15934405,0.00022087,2]
[312652513,1706136631704,-736.65943758,0.00022087,2]
[312652514,1706136631714,-1043.15716476,0.00022087,2]
[312652515,1706136631724,-215.34454032,0.00022088,2]
[312652516,1706136631733,-1279.59672095,0.00022088,2]
[312652517,1706136631748,-490.34087517,0.00022088,2]
[312652518,1706136631758,-473.80661658,0.00022089,2]
[312652519,1706136631767,-150.0,0.000221,2]
[312652520,1706136631778,-289.17,0.00022107,2]
[312652521,1706136631787,-161.34546977,0.00022184,2]
[312652522,1706136631797,-189.01,0.00022483,2]
[312652523,1706136631811,-200.0,0.00022548,2]
[312652524,1706136631820,-200.38,0.00022548,2]
[312652525,1706136631829,-6387.23,0.00022548,2]
[312652526,1706136631838,-250.0,0.00022622,2]
[312652527,1706136631847,-1720.25,0.00022683,2]
[312652528,1706136631857,-161.34546966,0.00022696,2]
[312652529,1706136631866,-10764.71,0.00022696,2]
[312652530,1706136631875,-200.0,0.00022789,2]
[312652531,1706136631885,-184.12,0.0002289,2]
[312652532,1706136631894,-622.68,0.00022934,2]
[312652533,1706136631903,-2001.0,0.00023068,2]
[312652534,1706136631912,-667.75,0.0002316,2]
[312652535,1706136631921,-161.34546966,0.00023208,2]
[312652536,1706136631931,-9999.99,0.00023208,2]
[312652537,1706136631940,-150.99,0.00023208,2]
[312652538,1706136631949,-933.03,0.00023208,2]
[312652539,1706136631959,-162.21,0.00023281,2]
[312652540,1706136631968,-467.25,0.00023367,2]
[312652542,1706136631977,-250.0,0.00023423,2]
[312652544,1706136631987,-750.0,0.00023441,2]
[312652546,1706136631998,-700.88,0.00023599,2]
[312652548,1706136632007,-161.34546966,0.0002372,2]
[312652550,1706136632016,-212789.19964775,0.00024015,2]
[312652551,1706136632041,-287.75294492,0.00024015,2]
[312652552,1706136632075,-271.49471219,0.00024015,2]
[312652553,1706136632086,-2176.86224856,0.00024015,2]
[312652554,1706136632110,-12471.0,0.00024015,2]
[312652555,1706136632156,-562.34159793,0.00024015,2]
[312652556,1706136632204,-3463.34807112,0.00024015,2]
[312652557,1706136632215,-737.50852455,0.00024015,2]